[Event "Italian-ch Juniors U20 2022"]
[Site "Cagliari"]
[Date "2022.11.20"]
[Round "4.3"]
[White "Cappelletto, Joshuaede"]
[Black "Bettalli, Francesco"]
[Result "1-0"]
[ECO "A31"]
[WhiteElo "2265"]
[BlackElo "2211"]
[Annotator "TA"]
[PlyCount "61"]
[EventDate "2022.11.17"]
[EventType "tourn"]
[EventCountry "ITA"]
[SourceTitle "playchess.com"]
[Source "ChessBase"]
[SourceQuality "1"]
[TimeControl "40/6000+30:20/3000:900+30"]

{[%evp 9,61,43,31,22,65,-20,4,7,8,2,6,4,25,0,0,0,36,14,72,25,49,22,59,49,103,103,107,45,41,68,81,68,67,67,72,63,73,73,80,72,95,89,113,107,248,252,793,770,752,695,896,866,1177,1145]} 1. c4 {[%emt 0:00:11]} c5 {[%emt 0:00:21]} 2. Nf3 {[%emt 0:00:07]} g6 {[%emt 0:00:05]} 3. d4 {[%emt 0:00:13]} cxd4 {[%emt 0:00:05]} 4. Nxd4 {[%emt 0:00:05]} Nf6 {[%emt 0:00:20]} 5. Nc3 {[%emt 0:00:28]} d5 {[%emt 0:00:05]} 6. e3 {[%emt 0:09:23] A31: Symmetrical English: 2 Nf3 Nf6 3 d4.} (6. Bg5 $5 {[%cal Rg5f6]}) 6... Bg7 {[%emt 0:01:23]} 7. Nf3 {[%emt 0:02:10]} (7. cxd5 $14 O-O 8. Nb3) 7... Qa5 {[%emt 0:04:02]} 8. Bd2 {[%emt 0:01:02] The position is equal.} dxc4 {[%emt 0:02:05]} 9. Bxc4 {[%emt 0:00:27] [#]} O-O $146 {[%emt 0:00:30]} ({Predecessor:} 9... Qc5 10. Bb3 O-O 11. O-O Nc6 12. Rc1 Qh5 13. h3 Bf5 14. Qe2 Ne4 15. Nxe4 Bxe4 {0-1 (64) Swicarz,M (2347)-Zubov,A (2598) Chess.com INT 2021}) 10. O-O {[%emt 0:00:45]} Qc7 {[%emt 0:03:48]} 11. Bb3 {[%emt 0:10:09]} Nc6 {[%emt 0:01:12]} 12. h3 {[%emt 0:00:33]} Bd7 {[%emt 0:12:42]} 13. Rc1 {[%emt 0:04:02]} Rac8 {[%emt 0:01:07]} (13... Qc8 $11) 14. Qe2 {[%emt 0:03:19]} (14. Re1 $16) 14... Qb8 $11 {[%emt 0:03:37]} 15. a3 {[%emt 0:06:42]} Na5 {[%emt 0:04:11]} 16. Ba2 {[%emt 0:00:19]} b5 {[%emt 0:00:16]} ({Better is} 16... Nc6 $14) 17. e4 $1 $16 {[%emt 0:15:19] Hoping for e5.} e5 {[%emt 0:06:04]} 18. Nd5 {[%emt 0:08:43]} ({White should try} 18. Bg5 $1 $16) 18... Nxd5 $14 {[%emt 0:00:50]} 19. Bxd5 {[%emt 0:00:30]} Nc6 {[%emt 0:00:40]} 20. Be3 {[%emt 0:02:55] White has more active pieces.} Nd4 {[%emt 0:04:12]} 21. Bxd4 {[%emt 0:05:42]} exd4 {[%emt 0:00:41]} 22. Rxc8 {[%emt 0:06:47]} Rxc8 {[%emt 0:02:13]} 23. Rd1 {[%emt 0:00:32]} (23. Qd2 {feels hotter.} b4 24. axb4 Bb5 25. Rd1) 23... b4 {[%emt 0:08:30]} 24. axb4 {[%emt 0:03:40]} (24. Nxd4 bxa3 25. bxa3 Ba4 $17) (24. e5 {simplifies} bxa3 25. bxa3 Bc6 26. Bxc6 Rxc6 27. Nxd4 Rc8 28. e6) 24... Qxb4 {[%emt 0:04:48] [#]} 25. e5 $1 {[%emt 0:00:42][%cal Od5f7] Strongly threatening Bxf7+!} Bb5 {[%emt 0:05:36]} 26. Qe4 {[%emt 0:00:49][%cal Od5f7] And now Bxf7+! would win.} Be8 {[%emt 0:09:53] [#] A mistake that costs the game.} (26... Qe7 $16) 27. e6 $1 $18 {[%emt 0:05:11] exf7+ is the strong threat.} (27. Rxd4 Qxb2 28. Rc4 Rxc4 29. Bxc4 Bf8 $11) (27. Nxd4 Kh8 $14) (27. Qxd4 Qxd4 28. Rxd4 Kf8 $14) 27... Bf6 $2 {[%emt 0:00:17]} (27... Kh8 28. exf7 Bd7 29. Nxd4 a6) 28. exf7+ {[%emt 0:02:00] White is clearly winning.} ({Less strong is} 28. Nxd4 Rd8 $16) 28... Bxf7 {[%emt 0:00:01]} 29. Bxf7+ {[%emt 0:00:13]} (29. Nxd4 Rd8 30. Qf3 (30. Bxf7+ Kxf7 31. Qe6+ Kg7 $17) 30... Rxd5 $17) 29... Kxf7 {[%emt 0:00:06]} 30. Qd5+ {[%emt 0:00:06]} ({And not} 30. Nxd4 Rd8 31. Qe6+ Kg7 32. Nf5+ gxf5 33. Rxd8 Bxd8 $17) 30... Kf8 {[%emt 0:00:11]} 31. Qe6 {[%emt 0:00:30] Weighted Error Value: White=0.15 (very precise) /Black=0.30} ({Not} 31. Nxd4 Qc4 32. Qd6+ Kg7 $16) 1-0

[Event "Italian-ch Juniors U20 2022"]
[Site "Cagliari"]
[Date "2022.11.20"]
[Round "4.4"]
[White "Lumachi, Gabriele"]
[Black "Rindone, Andrea"]
[Result "1-0"]
[ECO "E42"]
[WhiteElo "2394"]
[BlackElo "2104"]
[Annotator "TA"]
[PlyCount "91"]
[EventDate "2022.11.17"]
[EventType "tourn"]
[EventCountry "ITA"]
[SourceTitle "playchess.com"]
[Source "ChessBase"]
[SourceQuality "1"]
[TimeControl "40/6000+30:20/3000:900+30"]

{[%evp 19,91,12,7,-24,-22,-24,-11,-16,10,6,13,10,12,12,12,4,10,6,50,42,47,43,46,43,44,49,49,54,63,62,65,61,136,143,136,138,142,141,156,110,279,201,193,158,299,288,304,294,285,233,237,229,298,296,349,210,185,172,151,120,340,325,1322,811,1325,1220,1529,1438,1534,1456,1410,1365,1208,1186]} 1. d4 {[%emt 0:00:02]} Nf6 {[%emt 0:07:21]} 2. c4 {[%emt 0:00:05]} e6 {[%emt 0:00:08]} 3. Nc3 {[%emt 0:00:05]} Bb4 {[%emt 0:00:08]} 4. e3 {[%emt 0:00:48]} c5 {[%emt 0:00:39]} 5. Nge2 {[%emt 0:00:19]} cxd4 {[%emt 0:01:38]} 6. exd4 {[%emt 0:00:11]} d5 {[%emt 0:00:39]} 7. a3 {[%emt 0:00:11]} Be7 {[%emt 0:01:15]} 8. Nf4 {[%emt 0:00:08]} O-O {[%emt 0:01:38]} 9. cxd5 {[%emt 0:05:08]} Nxd5 {[%emt 0:00:33]} 10. Nfxd5 {[%emt 0:10:04]} exd5 {[%emt 0:00:08]} 11. Qb3 {[%emt 0:00:16] E42: Nimzo-Indian: Rubinstein: 4...c5 5 Ne2.} Nc6 {[%emt 0:03:51]} 12. Be3 {[%emt 0:00:45]} Bf6 {[%emt 0:03:14]} 13. Rd1 {[%emt 0:02:40] [#] The position is equal.} Re8 $146 {[%emt 0:10:07]} ({Predecessor:} 13... Ne7 14. Be2 b6 15. O-O Be6 16. Bf3 Qd7 17. Rfe1 Rfd8 18. Bf4 {½-½ (18) Pedersen,S (2406)-Reinecker,K (2246) Denmark 2015}) 14. Be2 {[%emt 0:07:19]} Na5 {[%emt 0:21:29]} (14... Ne7 {simplifies} 15. O-O Be6 16. Rfe1 Qd6) 15. Qxd5 {[%emt 0:04:03]} Be6 {[%emt 0:00:20] Against b4} 16. Qxd8 {[%emt 0:11:14]} Raxd8 {[%emt 0:02:34]} 17. Ne4 {[%emt 0:09:26]} Bh4 {[%emt 0:03:28] White must now prevent ...Bb3.} 18. Nd2 {[%emt 0:11:37]} Bg4 {[%emt 0:20:16][%mdl 64]} 19. g3 {[%emt 0:05:24]} Bxe2 {[%emt 0:00:09]} 20. Kxe2 {[%emt 0:00:10]} Bf6 {[%emt 0:00:14]} 21. Kd3 {[%emt 0:05:34]} Nc6 {[%emt 0:07:51][%cal Rc6d4]} 22. Nf3 {[%emt 0:00:48]} Rd5 {[%emt 0:00:34]} 23. Rd2 {[%emt 0:01:07][%cal Bd1d2,Bd2c2,Bc2c7][%mdl 32]} (23. h4 {simplifies} Red8 24. Ke2 Nxd4+ 25. Nxd4 Bxd4 26. Bxd4 Rxd4 27. Rxd4 Rxd4 28. Rc1) 23... Red8 {[%emt 0:04:10][%cal Rf6d4]} 24. Rhd1 {[%emt 0:01:03]} Na5 {[%emt 0:02:47]} (24... Bxd4 $2 25. Ke2 $18) (24... Nxd4 $2 25. Nxd4 (25. Ke4 Re8+ 26. Kxd5 Nxf3 $16) 25... Rxd4+ 26. Bxd4 Rxd4+ 27. Kc2 Rc4+ 28. Kb1 $18) 25. b4 {[%emt 0:04:02]} Nb3 {[%emt 0:02:45]} (25... Nc6 $1 $14) 26. Rc2 $1 $16 {[%emt 0:00:49]} a5 {[%emt 0:03:33]} 27. Rc7 {[%emt 0:07:14] Kc4 is the strong threat.} b5 {[%emt 0:01:12] [#]} 28. Ke4 $1 {[%emt 0:05:55]} g6 {[%emt 0:02:28] [#]} 29. g4 {[%emt 0:15:28]} ({Better is} 29. Rc8 $3 {[%mdl 512]}) 29... R8d6 $2 {[%emt 0:00:11]} (29... Bh8 $16) 30. Bf4 {[%emt 0:02:46]} Rd8 {[%emt 0:02:33]} 31. Rc8 {[%emt 0:00:17]} Be7 {[%emt 0:02:50]} (31... Rxc8 $16 {was necessary.} 32. Kxd5 Be7) 32. Rxd8+ $18 {[%emt 0:00:21]} Rxd8 {[%emt 0:00:01]} 33. Rd3 {[%emt 0:00:22]} a4 {[%emt 0:00:05]} 34. d5 {[%emt 0:00:15][%cal Bd4d5,Bd5d6][%mdl 32] And now d6 would win.} Re8 {[%emt 0:01:18] Prevents d6.} 35. Be5 {[%emt 0:01:10]} f6 {[%emt 0:02:57] Inhibits d6. Strongly threatening ...Bd6.} 36. d6 $1 {[%emt 0:00:04] aiming for d7.} Bd8 {[%emt 0:00:13] [#]} 37. Kd5 {[%emt 0:01:04]} fxe5 {[%emt 0:00:09]} 38. Nxe5 {[%emt 0:00:04]} Kg7 {[%emt 0:02:59]} 39. Nc6 {[%emt 0:00:52] White is more active.} Nc1 $2 {[%emt 0:00:56]} (39... Bb6 $16) 40. Re3 {[%emt 0:00:47]} Rf8 {[%emt 0:00:37]} (40... Rxe3 41. fxe3 Bb6) 41. Nxd8 {[%emt 0:02:15] White is clearly winning.} Rxd8 {[%emt 0:00:12]} 42. Kc6 {[%emt 0:01:36]} Rc8+ {[%emt 0:20:29]} 43. Kb7 {[%emt 0:00:00]} Rc2 {[%emt 0:01:08]} 44. d7 {[%emt 0:00:00]} Rd2 {[%emt 0:00:00]} 45. Kc7 {[%emt 0:00:00]} Rc2+ {[%emt 0:00:00]} 46. Kd6 {[%emt 0:00:00] Weighted Error Value: White=0.18 (very precise) /Black=0.41} 1-0

[Event "Italian-ch Juniors U20 2022"]
[Site "Cagliari"]
[Date "2022.11.21"]
[Round "5.1"]
[White "Rindone, Andrea"]
[Black "Hercegovac, Neven"]
[Result "1-0"]
[ECO "D94"]
[WhiteElo "2104"]
[BlackElo "2230"]
[Annotator "TA"]
[PlyCount "71"]
[EventDate "2022.11.17"]
[EventType "tourn"]
[EventCountry "ITA"]
[SourceTitle "playchess.com"]
[Source "ChessBase"]
[SourceQuality "1"]
[TimeControl "40/6000+30:20/3000:900+30"]

{[%evp 21,71,0,14,-3,-6,-39,-19,-47,-64,-71,0,-48,-54,-52,-41,-40,-47,-152,-159,-155,-137,-151,-144,-198,-196,-204,-189,-181,-180,-189,-84,-100,-17,-20,552,551,547,545,495,381,396,372,452,403,998,684,29984,29985,29987,29988,29990,29991]} 1. Nf3 {[%emt 0:05:21]} c5 {[%emt 0:00:11]} 2. c4 {[%emt 0:00:05]} g6 {[%emt 0:00:04]} 3. Nc3 {[%emt 0:01:10]} Bg7 {[%emt 0:00:09]} 4. e3 {[%emt 0:02:40][%cal Be2e3,Be3d4,Bd4d5][%mdl 32]} Nf6 {[%emt 0:00:10]} 5. d4 {[%emt 0:00:13]} cxd4 {[%emt 0:00:06]} 6. exd4 {[%emt 0:00:15]} d5 {[%emt 0:00:07]} 7. cxd5 {[%emt 0:00:17]} Nxd5 {[%emt 0:00:09]} 8. Bc4 {[%emt 0:01:06]} Nb6 {[%emt 0:00:19]} 9. Bb3 {[%emt 0:00:09]} O-O {[%emt 0:00:14]} 10. O-O {[%emt 0:00:18]} Nc6 {[%emt 0:03:13][%cal Bb8c6,Bc6a5,Ba5c4][%mdl 32]} 11. d5 {[%emt 0:09:21]} Na5 {[%emt 0:00:24]} 12. Be3 {[%emt 0:01:26] D94: Grünfeld: 4 Nf3 Bg7 5 e3.} Bg4 {[%emt 0:07:15]} 13. Re1 {[%emt 0:04:56]} (13. h3 $5 {[%cal Rh3g4]} Bxc3 14. bxc3 Nxb3 15. axb3 Bxf3 16. Qxf3 $11) 13... Nbc4 {[%emt 0:31:24]} 14. Bxc4 {[%emt 0:36:20] The position is equal.} Nxc4 {[%emt 0:07:36]} 15. Qb3 {[%emt 0:02:10] [#]} Qc8 $146 {[%emt 0:14:58]} (15... Nxe3 16. Rxe3 Bxf3 17. Rxf3) (15... Rc8 16. Nd4 Nxe3 17. fxe3 Qc7) (15... Rc8 $1 $17) ({Predecessor:} 15... Na5 16. Qb4 Bxf3 17. gxf3 Rc8 18. Bc5 Bxc3 19. bxc3 Qxd5 20. Bxe7 Nc6 21. Qxb7 Rb8 {0-1 (36) Niemela,A (2279)-Maki,V (2400) Finland 2011}) 16. Nd4 {[%emt 0:12:33]} (16. Nd2 $11 Nxe3 17. Rxe3) 16... Nxe3 $15 {[%emt 0:15:49]} 17. fxe3 {[%emt 0:00:09]} Qc7 {[%emt 0:03:10]} 18. h3 {[%emt 0:07:47]} Bd7 {[%emt 0:00:09]} 19. Nf3 {[%emt 0:00:41] [#]} ({White should play} 19. Rad1 $15) 19... Bxh3 $1 $17 {[%emt 0:01:04][%mdl 512]} 20. Ne4 {[%emt 0:03:08] Against Qg3} ({But not} 20. d6 Qxd6 21. Re2 {[#]} Rab8 $1) 20... Bf5 {[%emt 0:01:14] This pair of bishops is nice.} 21. Rac1 {[%emt 0:01:16]} Qb8 {[%emt 0:02:07]} 22. Nc5 {[%emt 0:00:47]} (22. Nf2 $17 {keeps fighting.}) 22... b6 $19 {[%emt 0:00:36]} 23. Na6 {[%emt 0:02:27][%cal Bc5a6,Ba6b4,Bb4c6][%mdl 32]} Qg3 {[%emt 0:02:17]} 24. e4 {[%emt 0:02:03]} Bg4 {[%emt 0:03:57] Hoping for ...Rac8.} 25. Nb4 {[%emt 0:02:12]} h5 {[%emt 0:04:20]} (25... Rfe8 $19 {and Black stays clearly on top. White must now prevent ...e6.} 26. Nc6 Bh6) 26. Nc6 $17 {[%emt 0:00:54]} Bh6 {[%emt 0:01:28]} (26... Rfe8 $17 {...Bxf3 is the strong threat.} 27. Nfd4 Qxb3 28. axb3 Rac8) 27. Nxe7+ $11 {[%emt 0:01:48]} Kh7 $2 {[%emt 0:00:02][%mdl 8192] [#] Loses the game.} (27... Kg7 $11 {and Black has nothing to worry.} 28. Qc3+ f6) 28. Ng5+ $1 $18 {[%emt 0:01:22][%mdl 512]} Bxg5 {[%emt 0:00:11]} 29. Qxg3 {[%emt 0:00:08]} Bxe7 {[%emt 0:00:17]} 30. d6 {[%emt 0:01:04]} Bg5 {[%emt 0:00:20]} 31. Rc7 {[%emt 0:00:15]} Kh6 {[%emt 0:00:27]} 32. e5 {[%emt 0:02:30]} f5 {[%emt 0:00:11]} (32... Be6 $142 33. Rf1 Rac8) 33. exf6 {[%emt 0:01:36]} Rxf6 {[%emt 0:00:03]} 34. Ree7 {[%emt 0:01:14][%csl Gc7][%cal Re7h7] White mates.} Rh8 {[%emt 0:00:17]} 35. Qe5 {[%emt 0:02:17]} h4 {[%emt 0:01:37]} 36. Rf7 {[%emt 0:01:11] Weighted Error Value: White=0.41/Black=0.66} 1-0

[Event "Italian-ch Juniors U20 2022"]
[Site "Cagliari"]
[Date "2022.11.21"]
[Round "5.2"]
[White "Bettalli, Francesco"]
[Black "Lumachi, Gabriele"]
[Result "1/2-1/2"]
[ECO "A50"]
[WhiteElo "2211"]
[BlackElo "2394"]
[Annotator "TA"]
[PlyCount "52"]
[EventDate "2022.11.17"]
[EventType "tourn"]
[EventCountry "ITA"]
[SourceTitle "playchess.com"]
[Source "ChessBase"]
[SourceQuality "1"]
[TimeControl "40/6000+30:20/3000:900+30"]

{[%evp 9,52,28,25,23,28,0,0,0,21,0,0,0,8,0,13,0,8,-8,14,0,0,0,5,0,0,0,0,-70,-58,-63,-47,-62,0,0,0,0,0,0,0,0,0,0,0,0,0]} 1. d4 {[%emt 0:03:47]} Nf6 {[%emt 0:00:53]} 2. Nf3 {[%emt 0:00:12]} b6 {[%emt 0:01:05]} 3. c4 {[%emt 0:00:12]} Bb7 {[%emt 0:00:15]} 4. e3 {[%emt 0:00:38]} g6 {[%emt 0:03:47]} 5. Bd3 {[%emt 0:03:42]} Bg7 {[%emt 0:00:45][%cal Oe7e5]} 6. O-O {[%emt 0:00:30] A50: Queen's Fianchetto Defence (1 d4 Nf6 2 c4 b6).} O-O {[%emt 0:01:38]} 7. Nbd2 {[%emt 0:02:00]} d6 {[%emt 0:05:52]} 8. e4 {[%emt 0:02:17] [#]} Nh5 $146 {[%emt 0:07:41]} ({Predecessor:} 8... Nbd7 9. Re1 e5 10. Nf1 exd4 11. Nxd4 Re8 12. Ng3 Nc5 13. f3 Nxd3 14. Qxd3 d5 15. cxd5 Nxd5 {0-1 (72) Odegov,A (2298)-Denishev,M (2159) Chess.com INT 2021}) 9. g3 {[%emt 0:07:01]} e5 {[%emt 0:02:56]} 10. d5 {[%emt 0:00:16]} a5 {[%emt 0:03:45]} 11. Ne1 {[%emt 0:01:01]} Bh6 {[%emt 0:10:22]} 12. Ng2 {[%emt 0:03:28]} (12. Nb1 {simplifies} Bxc1 13. Qxc1 Bc8 14. f3) 12... Bc8 {[%emt 0:01:41]} 13. b3 {[%emt 0:06:39]} (13. Nb1 {simplifies} Bxc1 14. Qxc1 Na6 15. Nc3) 13... Bh3 {[%emt 0:11:43]} 14. Nf3 {[%emt 0:09:41]} Bxc1 {[%emt 0:00:51]} 15. Qxc1 {[%emt 0:00:05]} Na6 {[%emt 0:06:50]} 16. Qh6 {[%emt 0:04:40] [#] And now Ng5 would win.} f6 {[%emt 0:00:30] Against Ng5} 17. a3 {[%emt 0:01:37]} Qd7 {[%emt 0:01:38] aiming for ...Bxg2.} 18. Qd2 {[%emt 0:02:40]} (18. Bc2 $11) 18... Nc5 $15 {[%emt 0:20:53] ...Bxg2 is the strong threat.} 19. Bc2 {[%emt 0:03:09]} Qg4 {[%emt 0:00:53][%csl LRe4,LRf3]} (19... f5 {is interesting.} 20. Qh6 Nxe4 21. Bxe4 fxe4 22. Ng5 Rf3) 20. Nfe1 {[%emt 0:15:17]} Bxg2 {[%emt 0:09:24]} ({Reject} 20... Nxe4 21. Bxe4 Qxe4 22. f3 Qd4+ 23. Qxd4 exd4 24. Nc2 $11) (20... a4 $15 21. b4 Nxe4 22. Bxe4 Qxe4) 21. Nxg2 $11 {[%emt 0:00:30] The position is equal.} Nxe4 {[%emt 0:01:34]} 22. Bxe4 {[%emt 0:02:10]} Qxe4 {[%emt 0:00:05]} 23. f3 $1 {[%emt 0:00:05]} Qd4+ {[%emt 0:00:13]} 24. Qxd4 {[%emt 0:00:06]} exd4 {[%emt 0:00:04]} 25. Rad1 {[%emt 0:01:08]} f5 {[%emt 0:01:25]} 26. Rxd4 {[%emt 0:00:25]} Rae8 {[%emt 0:00:06] Weighted Error Value: White=0.11 (very precise) /Black=0.08 (flawless)} 1/2-1/2

[Event "Italian-ch Juniors U20 2022"]
[Site "Cagliari"]
[Date "2022.11.21"]
[Round "5.3"]
[White "Ballotti, Luca"]
[Black "Cappelletto, Joshuaede"]
[Result "1/2-1/2"]
[ECO "A34"]
[WhiteElo "2136"]
[BlackElo "2265"]
[Annotator "TA"]
[PlyCount "24"]
[EventDate "2022.11.17"]
[EventType "tourn"]
[EventCountry "ITA"]
[SourceTitle "playchess.com"]
[Source "ChessBase"]
[SourceQuality "1"]
[TimeControl "40/6000+30:20/3000:900+30"]

{[%evp 9,24,19,16,14,10,22,28,0,-19,-10,-5,-10,15,-32,42,12,76]} 1. Nf3 {[%emt 0:00:03] Ribli,Z} c5 {[%emt 0:00:18]} 2. c4 {[%emt 0:00:08]} Nc6 {[%emt 0:00:06]} 3. Nc3 {[%emt 0:00:06]} e5 {[%emt 0:00:16]} 4. e3 {[%emt 0:03:02]} Nf6 {[%emt 0:00:19]} 5. Be2 {[%emt 0:03:54]} d5 {[%emt 0:03:50] [#] And now ...d4 would win.} 6. cxd5 {[%emt 0:00:09] A34: Symmetrical English: 2 Nc3, lines with ...d5.} Nxd5 {[%emt 0:00:06]} 7. O-O {[%emt 0:03:17]} Nc7 {[%emt 0:05:47]} 8. a3 {[%emt 0:09:47]} (8. b3 $142) 8... Be7 $11 {[%emt 0:02:39]} 9. Qc2 {[%emt 0:00:10][%cal Ob2b4]} O-O $1 {[%emt 0:00:47]} 10. Ne4 {[%emt 0:04:56]} Ne6 {[%emt 0:14:56] [#]} 11. Bc4 $146 {[%emt 0:01:09]} (11. Ng3 $11) ({Predecessor:} 11. b3 Bd7 12. Bb2 f6 13. Ng3 Rf7 14. Nf5 Bf8 15. d4 cxd4 16. exd4 Rc8 17. Qb1 {0-1 (27) Babiy,A (2471)-Filippov,V (2574) St Petersburg 1999 EXT 2020 [Ribli,Z]}) 11... b6 {[%emt 0:02:21]} (11... f5 $15 12. Nc3 e4) 12. b4 {[%emt 0:14:42]} Kh8 {[%emt 0:39:39] Weighted Error Value: White=0.14 (very precise) /Black=0.24 (precise)} (12... Bb7 $11 {keeps the balance.}) 1/2-1/2

[Event "Italian-ch Juniors U20 2022"]
[Site "Cagliari"]
[Date "2022.11.21"]
[Round "5.4"]
[White "Bin-Suhayl, Ieysaa"]
[Black "Orfini, Nicolo`"]
[Result "1-0"]
[ECO "E71"]
[WhiteElo "2230"]
[BlackElo "2227"]
[Annotator "TA"]
[PlyCount "77"]
[EventDate "2022.11.17"]
[EventType "tourn"]
[EventCountry "ITA"]
[SourceTitle "playchess.com"]
[Source "ChessBase"]
[SourceQuality "1"]
[TimeControl "40/6000+30:20/3000:900+30"]

{[%evp 9,77,39,60,39,34,10,21,0,20,-9,7,-86,54,48,42,24,64,53,43,76,53,50,114,114,182,176,271,268,331,326,382,358,464,440,452,417,387,389,468,358,397,396,389,292,273,278,441,322,259,195,494,491,454,435,672,615,1714,704,1311,1145,2526,2174,6545,6521,5899,5501,29983,29980,29992,29993]} 1. d4 {[%emt 0:01:56]} Nf6 {[%emt 0:00:10]} 2. c4 {[%emt 0:00:14]} d6 {[%emt 0:00:10]} 3. Nc3 {[%emt 0:00:19]} g6 {[%emt 0:01:33]} 4. e4 {[%emt 0:00:34]} Bg7 {[%emt 0:00:06]} 5. h3 {[%emt 0:00:54]} e5 {[%emt 0:00:28]} 6. d5 {[%emt 0:02:14] E71: King's Indian: 4 e4 d6 5 h3.} a5 {[%emt 0:00:07]} 7. g4 {[%emt 0:03:41][%cal Bg2g4,Bg4g5][%mdl 32]} Na6 {[%emt 0:00:55]} 8. Nge2 {[%emt 0:00:08] The position is equal.} Nd7 {[%emt 0:03:09] [#]} 9. h4 $146 {[%emt 0:17:33]} ({Predecessor:} 9. Be3 Bf6 10. Qd2 h6 11. O-O-O Bg5 12. f4 exf4 13. Nxf4 Ne5 14. Be2 Bd7 15. Kb1 {0-1 (49) Niemann,H (2688)-Saric,I (2668) chess24.com INT 2022}) 9... h5 {[%emt 0:27:51]} 10. Ng3 {[%emt 0:13:24]} (10. g5 $11 {remains equal.}) 10... Nf6 {[%emt 0:07:26]} (10... hxg4 $17 11. h5 Ndc5) 11. g5 $14 {[%emt 0:00:30]} Nd7 {[%emt 0:00:11]} 12. Be2 {[%emt 0:10:43]} (12. Be3) 12... Qe7 {[%emt 0:04:10]} 13. Be3 {[%emt 0:03:16]} f6 {[%emt 0:14:04]} 14. a3 {[%emt 0:05:21]} fxg5 {[%emt 0:04:50]} 15. hxg5 {[%emt 0:00:16][%cal Ob2b4]} (15. Bxg5 Bf6) ({Reject} 15. Bxg5 Bf6 $11) 15... Nf8 {[%emt 0:01:23] Against b4. Black is on the road to losing.} (15... Nac5) ({Black should try} 15... Nac5 $14) 16. b4 $16 {[%emt 0:01:46] White is more active.} Nb8 {[%emt 0:11:38]} (16... h4 $16) 17. c5 $18 {[%emt 0:06:29]} Bd7 {[%emt 0:03:20]} (17... h4 {might work better.}) 18. bxa5 {[%emt 0:13:50]} Rxa5 {[%emt 0:06:57]} 19. Qb3 {[%emt 0:00:30]} Bc8 {[%emt 0:06:41]} 20. cxd6 {[%emt 0:01:00]} Qxd6 {[%emt 0:02:03]} 21. Nb5 {[%emt 0:00:17]} Rxb5 {[%emt 0:00:46]} 22. Bxb5+ {[%emt 0:01:46]} ({Less strong is} 22. Qxb5+ Nfd7 23. Qa5 b6 $18) 22... Nfd7 {[%emt 0:00:07]} 23. Rc1 {[%emt 0:01:17] [#] Hoping for Bc5.} Kd8 {[%emt 0:03:07]} 24. Ne2 {[%emt 0:02:46]} Bf8 {[%emt 0:01:35]} 25. Rc3 {[%emt 0:00:35]} Na6 {[%emt 0:01:05]} 26. Bxa6 {[%emt 0:00:54]} Qxa6 {[%emt 0:00:25]} 27. f4 {[%emt 0:07:31]} Qa5 {[%emt 0:02:08]} (27... Bd6 $142 28. f5 Nf8) 28. O-O {[%emt 0:04:33]} Bd6 {[%emt 0:02:47]} 29. Kh1 {[%emt 0:01:57]} b6 $2 {[%emt 0:01:20]} (29... Qa6) 30. fxe5 {[%emt 0:01:33]} Nxe5 {[%emt 0:00:29]} 31. Rf6 {[%emt 0:01:25]} Ke7 {[%emt 0:00:27]} (31... b5 $142 32. Nd4 Bd7 33. Ne6+ Bxe6) 32. Bd4 {[%emt 0:01:08] Threatens to win with Bxe5.} Bg4 {[%emt 0:00:49]} 33. Nf4 {[%emt 0:00:33]} (33. Bxe5 $142 Rf8 34. Bxd6+ cxd6 35. Nd4 Rxf6 36. Nc6+ Ke8 37. Nxa5 Rf1+ 38. Kg2) 33... Qa6 {[%emt 0:01:12]} 34. Nd3 {[%emt 0:00:54]} Nf3 {[%emt 0:00:59]} 35. e5 {[%emt 0:00:56]} ({Stronger than} 35. Rxg6 Nxd4 $11) 35... Nxd4 {[%emt 0:00:34]} 36. exd6+ {[%emt 0:00:10]} cxd6 {[%emt 0:00:27]} 37. Qb4 {[%emt 0:00:36]} Nb5 {[%emt 0:01:07]} 38. Rc1 {[%emt 0:00:35]} Rh7 {[%emt 0:01:23] [#]} 39. Rc7+ $3 {[%emt 0:00:43][%mdl 512] Weighted Error Value: White=0.28 (precise) /Black=0.83} 1-0